fUSD/lending_fUSD_20240607
["ID","MTS","AMOUNT","RATE_DAILY","PERIOD"]
[328752629,1717766828192,-442.79,0.00026719,2]
[328752630,1717766828215,-152.0,0.00027161,3]
[328752631,1717766828236,-260.5,0.000274,2]
[328752632,1717766828258,-841.61,0.00028082,2]
[328752633,1717766828280,-1889.34,0.00028082,2]
[328752634,1717766828520,-150.0,0.00028356,2]
[328752635,1717766828544,-316.38392431,0.00028498,7]
[328752636,1717766828567,-157.34,0.00028602,2]
[328752637,1717766828593,-250.0,0.00028617,2]
[328752638,1717766828616,-178.51,0.00028632,2]
[328752639,1717766828639,-258.98,0.0002864,2]
[328752640,1717766828664,-250.0,0.0002865,2]
[328752641,1717766828688,-1000.0,0.00028678,2]
[328752642,1717766828713,-168.82,0.00028732,2]
[328752643,1717766828735,-150.0,0.00028904,2]
[328752644,1717766828759,-442.79,0.00028983,2]
[328752645,1717766828782,-301.19929662,0.00029,2]
[328752646,1717766828805,-150.0,0.00029178,2]
[328752647,1717766828828,-150.0,0.00029178,2]
[328752648,1717766828851,-151.5237495,0.00029344,2]
[328752649,1717766828889,-186.58604457,0.00029387,2]
[328752650,1717766828914,-223.97926039,0.00029391,2]
[328752651,1717766828937,-158.82373381,0.00029408,2]
[328752652,1717766828961,-223.97926039,0.00029425,2]
[328752653,1717766828985,-186.58604457,0.0002943,2]
[328752654,1717766829010,-223.97926039,0.00029447,2]
[328752655,1717766829034,-150.0,0.00029452,2]
[328752656,1717766829060,-150.0,0.00029452,2]
[328752657,1717766829085,-150.0,0.00029452,2]
[328752658,1717766829109,-150.0,0.00029452,2]
[328752659,1717766829132,-150.0,0.00029452,2]
[328752660,1717766829156,-150.0,0.00029452,2]
[328752661,1717766829180,-186.58604457,0.00029457,2]
[328752662,1717766829209,-151.5237495,0.00029509,2]
[328752663,1717766829233,-151.5237495,0.0002953,2]
[328752664,1717766829256,-154.48393235,0.00029536,2]
[328752665,1717766829279,-151.5237495,0.00029558,2]
[328752666,1717766829301,-500.0,0.00029563,2]
[328752667,1717766829323,-155.03146613,0.00029565,2]
[328752668,1717766829345,-151.5237495,0.00029567,2]
[328752669,1717766829370,-164.5855382,0.00029595,2]
[328752670,1717766829394,-186.58604457,0.00029598,2]
[328752671,1717766829417,-153.63068381,0.00029612,2]
[328752672,1717766829440,-150.89346556,0.00029623,2]
[328752673,1717766829462,-164.5855382,0.00029628,2]
[328752674,1717766829486,-223.97926039,0.00029636,2]
[328752675,1717766829513,-186.58604457,0.00029651,2]
[328752676,1717766829537,-150.89346556,0.00029665,2]
[328752677,1717766829563,-223.97926039,0.00029682,2]
[328752678,1717766829591,-155.10434994,0.00029699,2]
[328752679,1717766829622,-153.63068381,0.000297,2]
[328752680,1717766829646,-155.10434994,0.00029702,2]
[328752681,1717766829673,-500.0,0.00029712,2]
[328752682,1717766829702,-200.0,0.00029712,2]
[328752683,1717766829724,-156.18355746,0.00029758,2]
[328752684,1717766829747,-211.4368,0.00029799,2]
[328752685,1717766829771,-3704.2964,0.00029799,2]
[328752686,1717766829799,-227.77778214,0.00029799,15]
[328752687,1717766829824,-186.58604457,0.00029801,2]
[328752688,1717766829851,-227.7777821,0.0002981,15]
[328752689,1717766829875,-156.18355746,0.00029819,2]
[328752690,1717766829901,-227.7777821,0.00029821,15]
[328752691,1717766829926,-151.5237495,0.00029828,2]
[328752692,1717766829952,-227.7777821,0.00029833,15]
[328752693,1717766829976,-155.10434994,0.00029835,2]
[328752694,1717766829999,-215.43247165,0.00029837,2]
[328752695,1717766830024,-227.7777821,0.00029844,15]
[328752696,1717766830049,-150.0,0.00029844,2]
[328752697,1717766830071,-157.96364332,0.00029851,2]
[328752698,1717766830094,-166.66666667,0.00029853,2]
[328752699,1717766830117,-174.37,0.00029853,10]
[328752700,1717766830145,-227.7777821,0.00029855,15]
[328752701,1717766830167,-500.0,0.00029863,4]
[328752702,1717766830190,-312.40794507,0.00029863,4]
[328752703,1717766830212,-500.0,0.00029863,4]
[328752704,1717766830238,-500.0,0.00029863,4]
[328752705,1717766830260,-500.0,0.00029863,4]
[328752706,1717766830283,-481.62185297,0.00029863,4]
[328752707,1717766830307,-500.0,0.00029863,4]
[328752708,1717766830330,-452.36134895,0.00029863,4]
[328752709,1717766830355,-500.0,0.00029863,4]
[328752710,1717766830377,-500.0,0.00029863,4]
[328752711,1717766830400,-500.0,0.00029863,4]
[328752712,1717766830423,-500.0,0.00029863,4]
[328752713,1717766830445,-500.0,0.00029863,4]
[328752714,1717766830468,-500.0,0.00029863,4]
[328752715,1717766830490,-500.0,0.00029863,4]
[328752716,1717766830513,-500.0,0.00029863,4]
[328752717,1717766830536,-500.0,0.00029863,4]
[328752718,1717766830560,-500.0,0.00029863,4]
[328752719,1717766830588,-500.0,0.00029863,4]
[328752720,1717766830613,-500.0,0.00029863,4]
[328752721,1717766830635,-278.39716568,0.00029863,4]
[328752722,1717766830660,-500.0,0.00029863,4]
[328752723,1717766830683,-500.0,0.00029863,4]
[328752724,1717766830705,-500.0,0.00029863,4]
[328752725,1717766830727,-500.0,0.00029863,4]
[328752726,1717766830752,-500.0,0.00029863,4]
[328752727,1717766830775,-500.0,0.00029863,4]
[328752728,1717766830797,-524.50001624,0.00029863,4]
[328752729,1717766830819,-500.0,0.00029863,4]
[328752730,1717766830840,-500.0,0.00029863,4]
[328752731,1717766830862,-500.0,0.00029863,4]
[328752732,1717766830884,-500.0,0.00029863,4]
[328752733,1717766830906,-612.73,0.00029863,4]
[328752734,1717766830928,-282.17254824,0.00029863,4]
[328752735,1717766835171,-871.86,0.00029853,10]
[328752736,1717766835193,-217.82745176,0.00029863,4]
[328752737,1717766835212,-500.0,0.00029863,4]
[328752738,1717766835232,-500.0,0.00029863,4]
[328752739,1717766835254,-466.61,0.00029863,4]
[328752740,1717766835275,-639.9,0.00029863,4]
[328752741,1717766835296,-500.0,0.00029863,4]
[328752742,1717766835318,-500.0,0.00029863,4]
[328752743,1717766835338,-500.0,0.00029863,4]
[328752744,1717766835358,-500.0,0.00029863,4]
[328752745,1717766835378,-500.0,0.00029863,4]
[328752746,1717766835400,-227.7777821,0.00029866,15]
[328752747,1717766835423,-227.7777821,0.00029878,15]
[328752748,1717766835444,-486.18729624,0.0002988,2]
[328752749,1717766854100,-226.6238354,0.00022499,2]
[328752750,1717766854124,-150.0,0.00028356,2]
[328752751,1717766854146,-150.0,0.00028904,2]
[328752752,1717766854168,-151.52374951,0.00029335,2]
[328752753,1717766854189,-150.65880798,0.00029367,2]
[328752754,1717766854210,-151.52374951,0.00029371,2]
[328752755,1717766854232,-186.64938366,0.00029403,2]
[328752756,1717766854254,-153.63068381,0.00029417,2]
[328752757,1717766854274,-156.18355746,0.00029461,2]
[328752758,1717766854295,-151.52374951,0.00029511,2]
[328752759,1717766854317,-150.89346555,0.00029547,2]
[328752760,1717766854338,-160.14959941,0.0002957,2]
[328752761,1717766854359,-156.18355746,0.00029588,2]
[328752762,1717766854381,-153.63068381,0.00029588,2]
[328752763,1717766854403,-160.4647935,0.00029616,2]
[328752764,1717766854425,-156.18355746,0.0002964,2]
[328752765,1717766854449,-142.80144307,0.00029641,2]
[328752766,1717766946111,-375.0,0.00030132,120]
[328752767,1717766946147,-204.620853,0.00030778,120]
[328752768,1717766953331,-200.0,0.00031378,120]
[328752769,1717766953364,-150.0,0.00031777,120]
[328752770,1717766953394,-375.0,0.00031905,120]
[328752771,1717766961832,165.92,0.00024384,2]
[328752772,1717767025987,446.79515573,0.00024384,2]
[328752785,1717767032097,-260.5,0.00028465,2]
[328752786,1717767032107,-151.0,0.00028466,7]
[328752787,1717767032117,-200.0,0.00028878,2]
[328752788,1717767032127,-226.6238354,0.00028998,5]
[328752789,1717767032137,-1053.46018427,0.00029,30]
[328752790,1717767032147,-151.0,0.00029232,7]
[328752791,1717767032156,-21.54164087,0.00029641,2]
[328752792,1717767032166,-153.63068381,0.00029641,2]
[328752793,1717767032175,-1202.0443792,0.00029641,2]
[328752794,1717767032293,-1280.56006859,0.00029641,2]
[328752815,1717767037808,-485.38563594,0.0002937,2]
[328752817,1717767038022,-324.08736406,0.0002937,2]
[328752818,1717767038032,-3194.80093826,0.00029641,2]
[328752819,1717767038042,-3000.0,0.000297,2]
[328752820,1717767038052,-156.18355746,0.00029752,2]
[328752821,1717767038062,-151.52374951,0.00029762,2]
[328752822,1717767038072,-164.34308394,0.00029786,2]
[328752823,1717767038081,-257.773,0.00029799,2]
[328752824,1717767038091,-1717.4198,0.00029799,2]
[328752825,1717767038100,-151.85185474,0.000298,15]
[328752826,1717767038110,-164.34308394,0.00029835,2]
[328752827,1717767038120,-151.85185473,0.0002985,15]
[328752828,1717767038130,-156.206731,0.00029871,2]
[328752829,1717767038140,-186.64938366,0.00029874,2]
[328752830,1717767038150,-150.89346555,0.00029877,2]
[328752831,1717767038160,-2823.46643366,0.0002988,2]
[328752832,1717767038169,-13958.54409416,0.0002988,14]
[328752833,1717767038181,-16584.67496625,0.0002988,14]
[328752834,1717767038191,-155.03146614,0.00029886,2]
[328752835,1717767038200,-161.24,0.0002989,2]
[328752836,1717767038210,-168.34414588,0.00029897,2]
[328752837,1717767038223,-155.10434995,0.00029898,2]
[328752838,1717767038232,-294.21182112,0.00029898,2]
[328752840,1717767038241,-168.34414588,0.00029898,2]
[328752841,1717767038251,-294.21182104,0.00029898,2]
[328752842,1717767038260,-294.21182104,0.00029898,2]
[328752843,1717767038269,-294.21182104,0.00029899,2]
[328752844,1717767038279,-294.21182104,0.00029899,2]
[328752845,1717767038288,-294.21182104,0.00029899,2]
[328752846,1717767038298,-1474.1695501,0.00029899,2]
[328752849,1717767038493,-2062.2118101,0.00029899,2]
[328752851,1717767039991,324.39161414,0.00024384,2]
[328752861,1717767040975,-178.01,0.00028633,2]
[328752862,1717767040985,-2523.870311,0.00029899,2]
[328752863,1717767040997,-1918.44999999,0.00029899,2]
[328752864,1717767041009,-1621.88649941,0.00029899,2]
[328752865,1717767042030,-26523.46671677,0.00029899,2]
[328752866,1717767042040,-500.0,0.00029899,4]
[328752867,1717767042051,-221.89081773,0.00029899,4]
[328752868,1717767042061,-168.34414588,0.00029899,2]
[328752869,1717767042071,-294.21182104,0.00029899,2]
[328752870,1717767042081,-294.21182104,0.00029899,2]
[328752871,1717767042091,-294.21182104,0.00029899,2]
[328752872,1717767042101,-294.21182104,0.000299,2]
[328752873,1717767042111,-294.21182104,0.000299,2]
[328752874,1717767042120,-13235.5223,0.000299,2]
[328752875,1717767042129,-345.0,0.000299,2]
[328752876,1717767042139,-160.0,0.000299,2]
[328752877,1717767042149,-2000.0,0.000299,2]
[328752878,1717767042159,-691.0,0.000299,2]
[328752879,1717767042168,-691.0,0.000299,2]
[328752880,1717767042179,-190.0,0.000299,14]
[328752881,1717767042188,-294.21182104,0.000299,2]
[328752882,1717767042197,-1124.33720983,0.000299,7]
[328752883,1717767042207,-1124.33720983,0.000299,7]
[328752884,1717767042217,-1124.33720983,0.000299,7]
[328752885,1717767042229,-1124.33720983,0.000299,7]
[328752886,1717767042240,-1124.33720983,0.000299,7]
[328752887,1717767042250,-1124.33720983,0.000299,7]
[328752888,1717767042261,-1124.33720983,0.000299,7]
[328752889,1717767042271,-1124.33720983,0.000299,7]
[328752890,1717767042280,-1124.33720983,0.000299,7]
[328752891,1717767042290,-1124.33720983,0.000299,7]
[328752892,1717767042300,-1124.33720983,0.000299,7]
[328752893,1717767042310,-1124.33720983,0.000299,7]
[328752894,1717767042320,-1124.33720983,0.000299,7]
[328752895,1717767042330,-1124.33720983,0.000299,7]
[328752896,1717767042339,-1124.33720983,0.000299,7]
[328752897,1717767042349,-1124.33720983,0.000299,7]
[328752898,1717767042359,-1124.33720983,0.000299,7]
[328752899,1717767042368,-360.721164,0.000299,7]
[328752900,1717767042382,-763.61604583,0.000299,7]
[328752901,1717767042392,-365.93541849,0.000299,7]
[328752902,1717767042415,-379.82459999,0.000299,7]
[328752904,1717767042479,-378.57719135,0.000299,7]
[328752905,1717767042488,-1124.83,0.000299,7]
[328752906,1717767042498,-2015.38897865,0.000299,7]
[328752907,1717767042509,-1876.742,0.000299,7]
[328752908,1717767042520,-605.29286068,0.000299,7]
[328752909,1717767042529,-87.13963907,0.000299,7]
[328752936,1717767042889,-4410.28420026,0.000299,7]
[328752939,1717767042900,-436.17019493,0.000299,7]
[328752960,1717767043122,-4061.2536444,0.000299,7]
[328752962,1717767043132,-1929.51786081,0.000299,7]
[328752990,1717767043547,-2567.90597852,0.000299,7]
[328752992,1717767043557,-4497.42383933,0.000299,7]
[328752994,1717767043567,-2196.62086038,0.000299,7]
[328752996,1717767043584,-2300.80297895,0.000299,7]
[328752998,1717767043593,-4497.42383933,0.000299,7]
[328753000,1717767043602,-4497.42383933,0.000299,7]
[328753002,1717767043612,-4497.42383933,0.000299,7]
[328753004,1717767043621,-4497.42383933,0.000299,7]
[328753006,1717767043631,-4497.42383933,0.000299,7]
[328753008,1717767043642,-4497.42383933,0.000299,7]
[328753010,1717767043655,-4497.42383933,0.000299,7]
[328753012,1717767043665,-4497.42383933,0.000299,7]
[328753014,1717767043675,-4497.42383933,0.000299,7]
[328753016,1717767043686,-4497.42383933,0.000299,7]
[328753018,1717767043696,-4497.42383933,0.000299,7]
[328753020,1717767043706,-4497.42383933,0.000299,7]
[328753022,1717767043716,-4497.42383933,0.000299,7]
[328753024,1717767043731,-4497.92,0.000299,7]
[328753026,1717767043741,-330.5082725,0.000299,7]
[328753028,1717767043751,-330.5082725,0.000299,7]
[328753030,1717767043762,-330.5082725,0.000299,7]
[328753032,1717767043771,-330.5082725,0.000299,7]
[328753034,1717767043782,-330.5082725,0.000299,7]
[328753036,1717767043792,-330.5082725,0.000299,7]
[328753038,1717767043802,-330.5082725,0.000299,7]
[328753040,1717767043812,-330.5082725,0.000299,7]
[328753042,1717767043821,-330.5082725,0.000299,7]
[328753044,1717767043830,-330.5082725,0.000299,7]
[328753046,1717767043840,-330.5082725,0.000299,7]
[328753049,1717767043856,-330.5082725,0.000299,7]
[328753051,1717767043870,-330.5082725,0.000299,7]
[328753053,1717767043880,-330.5082725,0.000299,7]
[328753055,1717767043890,-330.5082725,0.000299,7]
[328753057,1717767043900,-330.5082725,0.000299,7]
[328753059,1717767043910,-330.5082725,0.000299,7]
[328753061,1717767043920,-330.5082725,0.000299,7]
[328753062,1717767043930,-330.5082725,0.000299,7]
[328753063,1717767043939,-331.0,0.000299,7]
[328753064,1717767043949,-1322.10808999,0.000299,7]
[328753065,1717767043959,-1322.10808999,0.000299,7]
[328753066,1717767043968,-1322.10808999,0.000299,7]
[328753067,1717767043980,-1322.10808999,0.000299,7]
[328753068,1717767043989,-1322.10808999,0.000299,7]
[328753069,1717767043999,-150.0,0.000299,6]
[328753070,1717767044008,-1322.10808999,0.000299,7]
[328753071,1717767044018,-1322.10808999,0.000299,7]
[328753072,1717767044028,-1322.10808999,0.000299,7]
[328753073,1717767044037,-1322.10808999,0.000299,7]
[328753074,1717767044047,-1322.10808999,0.000299,7]
[328753075,1717767044057,-150.0,0.000299,6]
[328753076,1717767044067,-1322.10808999,0.000299,7]
[328753077,1717767044077,-1322.10808999,0.000299,7]
[328753078,1717767044086,-1322.10808999,0.000299,7]
[328753079,1717767044096,-1322.10808999,0.000299,7]
[328753080,1717767044106,-1322.10808999,0.000299,7]
[328753081,1717767044116,-1322.10808999,0.000299,7]
[328753082,1717767044126,-168.34414588,0.000299,2]
[328753083,1717767044136,-1322.10808999,0.000299,7]
[328753085,1717767044146,-1322.10808999,0.000299,7]
[328753087,1717767044156,-1322.10808999,0.000299,7]
[328753089,1717767044166,-1322.6,0.000299,7]
[328753091,1717767044176,-151.85185473,0.000299,15]
[328753093,1717767044186,-167.69136997,0.000299,2]
[328753095,1717767044196,-2189.55083868,0.000299,2]
[328753098,1717767044207,-423.88568654,0.000299,2]
[328753101,1717767044216,-301.54937477,0.000299,2]
[328753104,1717767044228,-154.48393235,0.00029937,2]
[328753107,1717767044239,-186.64938366,0.00029947,2]
[328753110,1717767044248,-150.0,0.00029963,2]
[328753113,1717767044258,-268.0,0.0002997,15]
[328753116,1717767044268,-268.0,0.0002997,15]
[328753119,1717767044278,-150.5,0.0002997,15]
[328753122,1717767044288,-210.38,0.0002998,15]
[328753125,1717767044298,-155.78,0.0002998,15]
[328753128,1717767044307,-224.78,0.0002998,15]
[328753130,1717767044317,-268.0,0.0002998,15]
[328753132,1717767044327,-268.0,0.0002998,15]
[328753134,1717767044336,-268.0,0.0002998,15]
[328753136,1717767044346,-272.6,0.0002998,15]
[328753138,1717767044355,-257.5,0.0002998,15]
[328753140,1717767044365,-150.5,0.0002998,15]
[328753142,1717767044375,-166.66666666,0.00029982,2]
[328753144,1717767044384,-150.0,0.00029984,2]
[328753146,1717767044394,-112512.30829304,0.00029988,31]
[328753148,1717767044404,-152.69,0.00029988,2]
[328753150,1717767044413,-152.69,0.00029988,2]
[328753152,1717767044423,-186.64938366,0.00029989,2]
[328753154,1717767044432,-163.75,0.0002999,15]
[328753156,1717767044441,-212.19,0.0002999,15]
[328753158,1717767044451,-150.5,0.0002999,15]
[328753160,1717767044461,-150.5,0.0002999,15]
[328753162,1717767044470,-151.36,0.0002999,15]
[328753165,1717767044484,-150.5,0.0002999,15]
[328753167,1717767044499,-268.0,0.0002999,15]
[328753168,1717767044509,-268.0,0.0002999,15]
[328753169,1717767044519,-268.0,0.0002999,15]
[328753170,1717767044529,-268.0,0.0002999,15]
[328753171,1717767044539,-150.5,0.0002999,15]
[328753172,1717767044550,-150.5,0.0002999,15]
[328753173,1717767044560,-150.5,0.0002999,15]
[328753174,1717767044570,-164.34308394,0.00029996,2]
[328753175,1717767044581,-500.0,0.00029996,4]
[328753176,1717767044590,-500.0,0.00029996,4]
[328753177,1717767044601,-517.21069514,0.00029997,4]
[328753178,1717767044611,-500.0,0.00029997,4]
[328753179,1717767044622,-312.03177481,0.00029997,4]
[328753180,1717767044632,-500.0,0.00029997,4]
[328753181,1717767044648,-500.0,0.00029997,4]
[328753182,1717767044658,-500.0,0.00029997,4]
[328753183,1717767044668,-500.0,0.00029997,4]
[328753184,1717767044678,-500.0,0.00029997,4]
[328753185,1717767044689,-500.0,0.00029997,4]
[328753186,1717767044699,-500.0,0.00029997,4]
[328753187,1717767044709,-500.0,0.00029997,4]
[328753188,1717767044719,-500.0,0.00029997,4]
[328753189,1717767044734,-500.0,0.00029997,4]
[328753190,1717767044743,-500.0,0.00029997,4]
[328753191,1717767044753,-500.0,0.00029997,4]
[328753192,1717767044762,-500.0,0.00029997,4]
[328753193,1717767044772,-500.0,0.00029997,4]
[328753194,1717767044781,-500.0,0.00029997,4]
[328753195,1717767044790,-500.0,0.00029997,4]
[328753196,1717767044800,-500.0,0.00029997,4]
[328753197,1717767044811,-500.0,0.00029997,4]
[328753198,1717767044821,-590.54101662,0.00029997,4]
[328753199,1717767044831,-500.0,0.00029997,4]
[328753200,1717767044841,-166.56495173,0.00029997,4]
[328753201,1717767044851,-500.0,0.00029997,4]
[328753202,1717767044861,-500.0,0.00029997,4]
[328753203,1717767044870,-500.0,0.00029997,4]
[328753204,1717767044880,-500.0,0.00029997,4]
[328753205,1717767044890,-500.0,0.00029997,4]
[328753206,1717767044900,-428.46930281,0.00029997,4]
[328753207,1717767044909,-500.0,0.00029997,4]
[328753208,1717767044919,-500.0,0.00029997,4]
[328753209,1717767044929,-500.0,0.00029997,4]
[328753210,1717767044940,-500.0,0.00029997,4]
[328753211,1717767044950,-264.7,0.00029997,4]
[328753212,1717767044960,-568.86,0.00029997,4]
[328753213,1717767044970,-500.0,0.00029997,4]
[328753214,1717767044985,-553.68,0.00029997,4]
[328753215,1717767044994,-500.0,0.00029997,4]
[328753216,1717767045004,-522.42376548,0.00029997,4]
[328753217,1717767045014,-304.03368946,0.00029997,4]
[328753218,1717767045023,-500.0,0.00029997,4]
[328753219,1717767045032,-500.0,0.00029997,4]
[328753220,1717767045041,-500.0,0.00029997,4]
[328753221,1717767045051,-500.0,0.00029997,4]
[328753222,1717767045060,-196.91483976,0.00029997,4]
[328753223,1717767045070,-500.0,0.00029997,4]
[328753224,1717767045080,-500.0,0.00029997,4]
[328753225,1717767045090,-500.0,0.00029997,4]
[328753226,1717767045099,-242.40195222,0.00029997,4]
[328753227,1717767045110,-500.0,0.00029997,4]
[328753228,1717767045119,-363.70543078,0.00029997,4]
[328753229,1717767045131,-500.0,0.00029997,4]
[328753230,1717767045142,-500.0,0.00029997,4]
[328753231,1717767045152,-500.0,0.00029997,4]
[328753232,1717767045162,-500.0,0.00029997,4]
[328753233,1717767045172,-500.0,0.00029997,4]
[328753234,1717767045182,-500.0,0.00029997,4]
[328753235,1717767045192,-500.0,0.00029997,4]
[328753236,1717767045202,-500.0,0.00029997,4]
[328753237,1717767045212,-500.0,0.00029997,4]
[328753238,1717767045221,-500.0,0.00029997,4]
[328753239,1717767045237,-500.0,0.00029997,4]
[328753240,1717767045246,-500.0,0.00029997,4]
[328753241,1717767045256,-500.0,0.00029997,4]
[328753242,1717767045265,-500.0,0.00029997,4]
[328753243,1717767045275,-500.0,0.00029997,4]
[328753244,1717767045284,-500.0,0.00029997,4]
[328753245,1717767045294,-500.0,0.00029997,4]
[328753246,1717767045304,-500.0,0.00029997,4]
[328753247,1717767045314,-795.21,0.00029997,4]
[328753248,1717767045324,-795.21,0.00029997,4]
[328753249,1717767045334,-651.21,0.00029997,4]
[328753250,1717767045345,-165.49694028,0.00029997,4]
[328753251,1717767045354,-651.21,0.00029997,4]
[328753252,1717767045364,-590.15844111,0.00029997,4]
[328753253,1717767045375,-197.91491708,0.00029997,4]
[328753254,1717767045384,-500.0,0.00029997,4]
[328753255,1717767045395,-294.08440041,0.00029997,4]
[328753256,1717767045406,-635.51638725,0.00029997,4]
[328753257,1717767045416,-500.0,0.00029997,4]
[328753258,1717767045426,-392.33383217,0.00029997,4]
[328753259,1717767045435,-500.0,0.00029997,4]
[328753261,1717767045445,-237.55583639,0.00029997,4]
[328753263,1717767045455,-500.0,0.00029997,4]
[328753265,1717767045466,-500.0,0.00029997,4]
[328753267,1717767045477,-500.0,0.00029997,4]
[328753269,1717767045488,-500.0,0.00029997,4]
[328753271,1717767045498,-276.63807817,0.00029997,2]
[328753272,1717767045507,-500.0,0.00029997,4]
[328753274,1717767045517,-500.0,0.00029997,4]
[328753276,1717767045527,-1440.81,0.00029997,4]
[328753277,1717767045537,-500.0,0.00029997,4]
[328753278,1717767045547,-1440.81,0.00029997,4]
[328753279,1717767045556,-500.0,0.00029997,4]
[328753280,1717767045566,-500.0,0.00029997,4]
[328753281,1717767045576,-500.0,0.00029997,4]
[328753282,1717767045586,-500.0,0.00029997,4]
[328753283,1717767045595,-500.0,0.00029997,4]
[328753284,1717767045607,-500.0,0.00029997,4]
[328753285,1717767045617,-500.0,0.00029997,4]
[328753286,1717767045627,-507.22,0.00029997,4]
[328753287,1717767045638,-2395.97,0.00029997,4]
[328753288,1717767045652,-2395.97,0.00029997,4]
[328753289,1717767045662,-500.0,0.00029997,4]
[328753290,1717767045671,-500.0,0.00029997,4]
[328753295,1717767045853,-500.0,0.00029997,4]
[328753296,1717767045885,-500.0,0.00029997,4]
[328753297,1717767045895,-500.0,0.00029997,4]
[328753298,1717767045905,-716.62,0.00029997,4]
[328753299,1717767045915,-716.62,0.00029997,4]
[328753300,1717767045926,-716.62,0.00029997,4]
[328753301,1717767045935,-716.62,0.00029997,4]
[328753302,1717767045945,-500.0,0.00029997,4]
[328753303,1717767045955,-500.0,0.00029997,4]
[328753304,1717767045964,-258.34316627,0.00029997,4]
[328753305,1717767045977,-169.14683134,0.00029997,4]
[328753306,1717767045987,-500.0,0.00029997,4]
[328753307,1717767045996,-500.0,0.00029997,4]
[328753308,1717767046006,-500.0,0.00029997,4]
[328753309,1717767046015,-386.05,0.00029997,4]
[328753310,1717767046024,-500.0,0.00029997,4]
[328753311,1717767046033,-500.0,0.00029997,4]
[328753312,1717767046043,-500.0,0.00029997,4]
[328753313,1717767046054,-500.0,0.00029997,4]
[328753314,1717767046065,-500.0,0.00029997,4]
[328753315,1717767046075,-500.0,0.00029997,4]
[328753316,1717767046084,-500.0,0.00029997,4]
[328753317,1717767046094,-500.0,0.00029997,4]
[328753318,1717767046104,-500.0,0.00029997,4]
[328753319,1717767046114,-500.0,0.00029997,4]
[328753320,1717767046123,-345.64489029,0.00029997,4]
[328753321,1717767046132,-500.0,0.00029997,4]
[328753322,1717767046142,-438.84768449,0.00029997,4]
[328753323,1717767046152,-500.0,0.00029997,4]
[328753324,1717767046162,-500.0,0.00029997,4]
[328753325,1717767046171,-1049.11,0.00029997,4]
[328753326,1717767046181,-1049.11,0.00029997,4]
[328753327,1717767046191,-1049.11,0.00029997,4]
[328753328,1717767046200,-1049.11,0.00029997,4]
[328753329,1717767046212,-1049.11,0.00029997,4]
[328753330,1717767046222,-500.0,0.00029997,4]
[328753331,1717767046235,-500.0,0.00029997,4]
[328753332,1717767046244,-500.0,0.00029997,4]
[328753333,1717767046253,-500.0,0.00029997,4]
[328753334,1717767046263,-500.0,0.00029997,4]
[328753335,1717767046272,-500.0,0.00029997,4]
[328753336,1717767046283,-160.18740598,0.00029997,4]
[328753337,1717767046293,-762.57,0.00029997,4]
[328753338,1717767046303,-762.57,0.00029997,4]
[328753339,1717767046313,-762.57,0.00029997,4]
[328753340,1717767046324,-762.57,0.00029997,4]
[328753341,1717767046334,-383.1716,0.00029997,4]
[328753342,1717767046343,-500.0,0.00029997,4]
[328753343,1717767046353,-500.0,0.00029997,4]
[328753344,1717767046363,-187.78308223,0.00029997,4]
[328753345,1717767046373,-500.0,0.00029997,4]
[328753346,1717767046383,-500.0,0.00029997,4]
[328753347,1717767046393,-500.0,0.00029997,4]